[Event "Titled Tuesday Blitz August 09 Early 2022"]
[White "Shapiro, Daniel"]
[Black "Melikhov, Evgeny V."]
[WhiteFideId "2001780"]
[BlackFideId "4122046"]
[WhiteElo "2261"]
[BlackElo "1963"]
[Result "1/2-1/2"]
[Round "11"]
[TimeControl "180+1"]
[Date "2022.08.09"]
[WhiteClock "0:00:08"]
[BlackClock "0:00:14"]

1. d4 {[%clk 0:03:00]}  Nf6 {[%clk 0:02:58]} 2. c4 {[%clk 0:03:00]}  e6 {[%clk 0:02:58]} 3. g3 {[%clk 0:02:59]}  d5 {[%clk 0:02:58]} 4. Nf3 {[%clk 0:02:59]}  dxc4 {[%clk 0:02:58]} 5. Bg2 {[%clk 0:02:59]}  Nc6 {[%clk 0:02:58]} 6. Qa4 {[%clk 0:02:58]}  Bb4+ {[%clk 0:02:57]} 7. Bd2 {[%clk 0:02:58]}  Bd6 {[%clk 0:02:58]} 8. Qxc4 {[%clk 0:02:53]}  O-O {[%clk 0:02:58]} 9. Bf4 {[%clk 0:02:49]}  Bxf4 {[%clk 0:02:57]} 10. gxf4 {[%clk 0:02:49]}  Qd5 {[%clk 0:02:57]} 11. Nbd2 {[%clk 0:02:45]}  Qxc4 {[%clk 0:02:53]} 12. Nxc4 {[%clk 0:02:45]}  Nb4 {[%clk 0:02:47]} 13. O-O {[%clk 0:02:39]}  Nbd5 {[%clk 0:02:27]} 14. e3 {[%clk 0:02:38]}  Rd8 {[%clk 0:02:25]} 15. Rfc1 {[%clk 0:02:32]}  Bd7 {[%clk 0:02:21]} 16. Nce5 {[%clk 0:02:31]}  Be8 {[%clk 0:02:17]} 17. a3 {[%clk 0:02:20]}  c6 {[%clk 0:02:14]} 18. Ne1 {[%clk 0:02:19]}  Nd7 {[%clk 0:02:09]} 19. N1d3 {[%clk 0:02:17]}  f6 {[%clk 0:02:09]} 20. Nc4 {[%clk 0:02:15]}  Bg6 {[%clk 0:02:03]} 21. Bf1 {[%clk 0:01:56]}  N7b6 {[%clk 0:01:56]} 22. Na5 {[%clk 0:01:53]}  Na4 {[%clk 0:01:36]} 23. Nxb7 {[%clk 0:01:38]}  Rdb8 {[%clk 0:01:35]} 24. Na5 {[%clk 0:01:35]}  Nxb2 {[%clk 0:01:35]} 25. Nc5 {[%clk 0:01:23]}  Rb6 {[%clk 0:01:25]} 26. Nxe6 {[%clk 0:01:20]}  Be4 {[%clk 0:01:06]} 27. Nc5 {[%clk 0:01:00]}  Bf3 {[%clk 0:01:04]} 28. Bg2 {[%clk 0:00:56]}  Bxg2 {[%clk 0:01:03]} 29. Kxg2 {[%clk 0:00:57]}  f5 {[%clk 0:00:51]} 30. Rc2 {[%clk 0:00:52]}  Rab8 {[%clk 0:00:46]} 31. Rb1 {[%clk 0:00:43]}  Rb5 {[%clk 0:00:43]} 32. Nab3 {[%clk 0:00:38]}  Na4 {[%clk 0:00:39]} 33. Nxa4 {[%clk 0:00:36]}  Rxb3 {[%clk 0:00:38]} 34. Rxb3 {[%clk 0:00:33]}  Rxb3 {[%clk 0:00:37]} 35. Rxc6 {[%clk 0:00:33]}  Rxa3 {[%clk 0:00:37]} 36. Rd6 {[%clk 0:00:27]}  Nxe3+ {[%clk 0:00:35]} 37. fxe3 {[%clk 0:00:26]}  Rxa4 {[%clk 0:00:36]} 38. Rd7 {[%clk 0:00:21]}  h6 {[%clk 0:00:33]} 39. d5 {[%clk 0:00:20]}  g5 {[%clk 0:00:33]} 40. fxg5 {[%clk 0:00:19]}  hxg5 {[%clk 0:00:33]} 41. d6 {[%clk 0:00:19]}  Kf8 {[%clk 0:00:31]} 42. Rb7 {[%clk 0:00:16]}  Ke8 {[%clk 0:00:30]} 43. Re7+ {[%clk 0:00:16]}  Kd8 {[%clk 0:00:30]} 44. Re5 {[%clk 0:00:15]}  f4 {[%clk 0:00:25]} 45. Rxg5 {[%clk 0:00:14]}  fxe3 {[%clk 0:00:24]} 46. Re5 {[%clk 0:00:14]}  Kd7 {[%clk 0:00:20]} 47. Rxe3 {[%clk 0:00:13]}  Kxd6 {[%clk 0:00:21]} 48. Kg3 {[%clk 0:00:13]}  a5 {[%clk 0:00:21]} 49. h4 {[%clk 0:00:13]}  Ra1 {[%clk 0:00:20]} 50. h5 {[%clk 0:00:12]}  Rh1 {[%clk 0:00:19]} 51. Kg4 {[%clk 0:00:11]}  a4 {[%clk 0:00:19]} 52. Ra3 {[%clk 0:00:08]}  Rg1+ {[%clk 0:00:18]} 53. Kh4 {[%clk 0:00:08]}  Ke6 {[%clk 0:00:15]} 54. Rxa4 {[%clk 0:00:07]}  Kf6 {[%clk 0:00:15]} 55. Ra6+ {[%clk 0:00:07]}  Kg7 {[%clk 0:00:15]} 56. Rg6+ {[%clk 0:00:07]}  Rxg6 {[%clk 0:00:14]} 57. hxg6 {[%clk 0:00:08]}  Kxg6 {[%clk 0:00:14]} 1/2-1/2


[Site "https://www.chess.com"]

[Event "Titled Tuesday Blitz August 09 Early 2022"]
[White "Shimanov, Aleksandr"]
[Black "Srihari L R"]
[WhiteFideId "4198603"]
[BlackFideId "46617116"]
[WhiteElo "2605"]
[BlackElo "2170"]
[Result "1-0"]
[Round "11"]
[TimeControl "180+1"]
[Date "2022.08.09"]
[WhiteClock "0:00:10"]
[BlackClock "0:00:09"]

1. e4 {[%clk 0:03:00]}  c6 {[%clk 0:02:57]} 2. d4 {[%clk 0:02:42]}  d5 {[%clk 0:02:56]} 3. Nd2 {[%clk 0:02:43]}  dxe4 {[%clk 0:02:56]} 4. Nxe4 {[%clk 0:02:44]}  Bf5 {[%clk 0:02:56]} 5. Ng3 {[%clk 0:02:43]}  Bg6 {[%clk 0:02:56]} 6. h4 {[%clk 0:02:40]}  h6 {[%clk 0:02:55]} 7. Nf3 {[%clk 0:02:40]}  Nd7 {[%clk 0:02:55]} 8. Bc4 {[%clk 0:02:39]}  e6 {[%clk 0:02:53]} 9. Qe2 {[%clk 0:02:38]}  Ngf6 {[%clk 0:02:48]} 10. O-O {[%clk 0:02:35]}  Bd6 {[%clk 0:02:46]} 11. Ne5 {[%clk 0:02:33]}  Bxe5 {[%clk 0:02:40]} 12. dxe5 {[%clk 0:02:34]}  Nd5 {[%clk 0:02:40]} 13. h5 {[%clk 0:02:35]}  Bh7 {[%clk 0:02:39]} 14. Qg4 {[%clk 0:02:31]}  Nxe5 {[%clk 0:02:31]} 15. Qxg7 {[%clk 0:02:29]}  Qf6 {[%clk 0:02:22]} 16. Qxf6 {[%clk 0:01:53]}  Nxf6 {[%clk 0:02:22]} 17. Bb3 {[%clk 0:01:50]}  Bg8 {[%clk 0:01:39]} 18. Bf4 {[%clk 0:01:41]}  Ned7 {[%clk 0:01:37]} 19. Rad1 {[%clk 0:01:35]}  Nd5 {[%clk 0:01:34]} 20. Bc1 {[%clk 0:01:32]}  Nc5 {[%clk 0:01:22]} 21. c4 {[%clk 0:01:29]}  Nxb3 {[%clk 0:01:20]} 22. axb3 {[%clk 0:01:30]}  Ne7 {[%clk 0:01:08]} 23. Bd2 {[%clk 0:01:29]}  Bh7 {[%clk 0:01:07]} 24. Bc3 {[%clk 0:01:26]}  Rg8 {[%clk 0:01:06]} 25. Bf6 {[%clk 0:01:16]}  Bc2 {[%clk 0:00:57]} 26. Rd4 {[%clk 0:01:15]}  c5 {[%clk 0:00:49]} 27. Rd2 {[%clk 0:01:03]}  Bxb3 {[%clk 0:00:47]} 28. Ne4 {[%clk 0:00:56]}  Rg4 {[%clk 0:00:30]} 29. Nd6+ {[%clk 0:00:46]}  Kf8 {[%clk 0:00:29]} 30. f3 {[%clk 0:00:47]}  Rg8 {[%clk 0:00:19]} 31. Nxb7 {[%clk 0:00:36]}  Bxc4 {[%clk 0:00:18]} 32. Rc1 {[%clk 0:00:33]}  Bd5 {[%clk 0:00:17]} 33. Nxc5 {[%clk 0:00:33]}  Bxf3 {[%clk 0:00:12]} 34. Nd7+ {[%clk 0:00:30]}  Ke8 {[%clk 0:00:12]} 35. Bxe7 {[%clk 0:00:12]}  Kxe7 {[%clk 0:00:13]} 36. Rc7 {[%clk 0:00:13]}  Bd5 {[%clk 0:00:11]} 37. Nb6+ {[%clk 0:00:11]}  Kd6 {[%clk 0:00:09]} 38. Nxa8 {[%clk 0:00:11]}  Rxa8 {[%clk 0:00:06]} 39. Rxf7 {[%clk 0:00:12]}  a5 {[%clk 0:00:05]} 40. Rf6 {[%clk 0:00:12]}  Rg8 {[%clk 0:00:04]} 41. Rxh6 {[%clk 0:00:12]}  a4 {[%clk 0:00:04]} 42. Rg6 {[%clk 0:00:12]}  Rh8 {[%clk 0:00:04]} 43. Rg5 {[%clk 0:00:12]}  Ke7 {[%clk 0:00:04]} 44. Rf2 {[%clk 0:00:12]}  Rb8 {[%clk 0:00:02]} 45. h6 {[%clk 0:00:11]}  Kd6 {[%clk 0:00:02]} 46. h7 {[%clk 0:00:10]}  Rh8 {[%clk 0:00:03]} 47. Rf7 {[%clk 0:00:08]}  Be4 {[%clk 0:00:03]} 48. Rg4 {[%clk 0:00:05]}  Rxh7 {[%clk 0:00:02]} 49. Rxh7 {[%clk 0:00:05]}  Bxh7 {[%clk 0:00:03]} 50. Rxa4 {[%clk 0:00:06]}  Kc5 {[%clk 0:00:03]} 51. Kf2 {[%clk 0:00:06]}  e5 {[%clk 0:00:03]} 52. Rh4 {[%clk 0:00:06]}  Bf5 {[%clk 0:00:03]} 53. Ke3 {[%clk 0:00:07]}  Kd5 {[%clk 0:00:03]} 54. g4 {[%clk 0:00:07]}  Be6 {[%clk 0:00:03]} 55. g5 {[%clk 0:00:08]}  Bf5 {[%clk 0:00:03]} 56. Rh6 {[%clk 0:00:09]}  Kc4 {[%clk 0:00:03]} 57. g6 {[%clk 0:00:09]}  Bxg6 {[%clk 0:00:04]} 58. Rxg6 {[%clk 0:00:10]}  Kb3 {[%clk 0:00:04]} 59. Rg2 {[%clk 0:00:10]}  e4 {[%clk 0:00:04]} 60. Kxe4 {[%clk 0:00:10]}  Ka2 {[%clk 0:00:05]} 61. b4+ {[%clk 0:00:10]}  Kb3 {[%clk 0:00:06]} 62. b5 {[%clk 0:00:10]}  Kc4 {[%clk 0:00:05]} 63. b6 {[%clk 0:00:10]}  Kc5 {[%clk 0:00:06]} 64. b7 {[%clk 0:00:10]}  Kc6 {[%clk 0:00:07]} 65. b8=Q {[%clk 0:00:10]}  Kd7 {[%clk 0:00:08]} 66. Rg7+ {[%clk 0:00:10]}  Ke6 {[%clk 0:00:09]} 67. Qb6# {[%clk 0:00:10]} 1-0


[Site "https://www.chess.com"]

[Event "Titled Tuesday Blitz August 09 Early 2022"]
[White "Siva Mahadevan"]
[Black "Sokolovsky, Yahli"]
[WhiteFideId "25043153"]
[BlackFideId "2820242"]
[WhiteElo "2203"]
[BlackElo "1867"]
[Result "0-1"]
[Round "11"]
[TimeControl "180+1"]
[Date "2022.08.09"]
[WhiteClock "0:01:03"]
[BlackClock "0:00:05"]

1. Nf3 {[%clk 0:02:58]}  d5 {[%clk 0:02:59]} 2. b3 {[%clk 0:02:57]}  c5 {[%clk 0:02:55]} 3. Bb2 {[%clk 0:02:57]}  d4 {[%clk 0:02:56]} 4. c3 {[%clk 0:02:53]}  Nc6 {[%clk 0:02:56]} 5. cxd4 {[%clk 0:02:53]}  cxd4 {[%clk 0:02:57]} 6. e3 {[%clk 0:02:50]}  Bg4 {[%clk 0:02:54]} 7. h3 {[%clk 0:02:45]}  Bh5 {[%clk 0:02:11]} 8. g4 {[%clk 0:02:41]}  Bg6 {[%clk 0:02:07]} 9. Nxd4 {[%clk 0:02:41]}  Be4 {[%clk 0:01:48]} 10. f3 {[%clk 0:02:36]}  e5 {[%clk 0:01:49]} 11. fxe4 {[%clk 0:02:32]}  Qh4+ {[%clk 0:01:48]} 12. Ke2 {[%clk 0:02:29]}  exd4 {[%clk 0:01:48]} 13. exd4 {[%clk 0:02:26]}  O-O-O {[%clk 0:01:32]} 14. d5 {[%clk 0:02:25]}  Bc5 {[%clk 0:01:33]} 15. Qe1 {[%clk 0:02:21]}  Qe7 {[%clk 0:01:32]} 16. Kd1 {[%clk 0:02:17]}  Nd4 {[%clk 0:00:41]} 17. Nc3 {[%clk 0:02:16]}  Nf6 {[%clk 0:00:41]} 18. Bg2 {[%clk 0:02:13]}  Rhe8 {[%clk 0:00:39]} 19. Rc1 {[%clk 0:02:12]}  Kb8 {[%clk 0:00:39]} 20. Na4 {[%clk 0:02:04]}  b6 {[%clk 0:00:08]} 21. Nxc5 {[%clk 0:02:02]}  bxc5 {[%clk 0:00:09]} 22. d3 {[%clk 0:02:02]}  Nd7 {[%clk 0:00:08]} 23. b4 {[%clk 0:01:57]}  Ne5 {[%clk 0:00:06]} 24. bxc5 {[%clk 0:01:57]}  Nb5 {[%clk 0:00:02]} 25. Qb4 {[%clk 0:01:56]}  a6 {[%clk 0:00:02]} 26. Rc3 {[%clk 0:01:49]}  Rxd5 {[%clk 0:00:02]} 27. exd5 {[%clk 0:01:30]}  Nxd3 {[%clk 0:00:03]} 28. Rxd3 {[%clk 0:01:31]}  Qe2+ {[%clk 0:00:03]} 29. Kc1 {[%clk 0:01:31]}  Qxd3 {[%clk 0:00:04]} 30. Rd1 {[%clk 0:01:31]}  Qg3 {[%clk 0:00:03]} 31. a4 {[%clk 0:01:27]}  Qxg2 {[%clk 0:00:03]} 32. axb5 {[%clk 0:01:27]}  Ka8 {[%clk 0:00:02]} 33. b6 {[%clk 0:01:23]}  Re4 {[%clk 0:00:03]} 34. b7+ {[%clk 0:01:20]}  Kb8 {[%clk 0:00:03]} 35. c6 {[%clk 0:01:21]}  Rxb4 {[%clk 0:00:03]} 36. Be5+ {[%clk 0:01:21]}  Ka7 {[%clk 0:00:03]} 37. b8=Q+ {[%clk 0:01:04]}  Rxb8 {[%clk 0:00:04]} 38. Bxb8+ {[%clk 0:01:04]}  Kxb8 {[%clk 0:00:05]} 39. Rd2 {[%clk 0:01:04]}  Qf1+ {[%clk 0:00:05]} 40. Kb2 {[%clk 0:01:03]}  Qb5+ {[%clk 0:00:05]} 41. Ka3 {[%clk 0:01:03]}  Qa5+ {[%clk 0:00:05]} 0-1


[Site "https://www.chess.com"]

[Event "Titled Tuesday Blitz August 09 Early 2022"]
[White "Tuleyeva-Aketayeva, Dana"]
[Black "Vasques, Antonio Pedro Freixial"]
[WhiteFideId "13701932"]
[BlackFideId "1908332"]
[WhiteElo "1849"]
[BlackElo "2243"]
[Result "0-1"]
[Round "11"]
[TimeControl "180+1"]
[Date "2022.08.09"]
[WhiteClock "0:00:07"]
[BlackClock "0:01:22"]

1. d4 {[%clk 0:03:00]}  Nf6 {[%clk 0:02:49]} 2. Nf3 {[%clk 0:02:58]}  d5 {[%clk 0:02:45]} 3. g3 {[%clk 0:02:58]}  c5 {[%clk 0:02:43]} 4. Bg2 {[%clk 0:02:57]}  Nc6 {[%clk 0:02:41]} 5. O-O {[%clk 0:02:56]}  e6 {[%clk 0:02:35]} 6. b3 {[%clk 0:02:55]}  Bd7 {[%clk 0:02:35]} 7. c4 {[%clk 0:02:54]}  dxc4 {[%clk 0:02:33]} 8. bxc4 {[%clk 0:02:54]}  cxd4 {[%clk 0:02:33]} 9. Nxd4 {[%clk 0:02:53]}  Nxd4 {[%clk 0:02:33]} 10. Qxd4 {[%clk 0:02:53]}  Bc6 {[%clk 0:02:33]} 11. Bxc6+ {[%clk 0:02:48]}  bxc6 {[%clk 0:02:34]} 12. Qxd8+ {[%clk 0:02:37]}  Rxd8 {[%clk 0:02:34]} 13. Be3 {[%clk 0:02:36]}  Bd6 {[%clk 0:02:26]} 14. a4 {[%clk 0:02:22]}  a6 {[%clk 0:02:18]} 15. Bb6 {[%clk 0:02:12]}  Rd7 {[%clk 0:02:14]} 16. Na3 {[%clk 0:02:04]}  O-O {[%clk 0:02:14]} 17. c5 {[%clk 0:01:59]}  Be5 {[%clk 0:02:13]} 18. Rad1 {[%clk 0:01:56]}  Nd5 {[%clk 0:02:08]} 19. Nc4 {[%clk 0:01:47]}  Bb8 {[%clk 0:02:01]} 20. a5 {[%clk 0:01:43]}  Re8 {[%clk 0:02:01]} 21. e4 {[%clk 0:01:40]}  Nf6 {[%clk 0:01:59]} 22. Rxd7 {[%clk 0:01:31]}  Nxd7 {[%clk 0:02:00]} 23. Rd1 {[%clk 0:01:31]}  Nf6 {[%clk 0:01:57]} 24. f3 {[%clk 0:01:26]}  h5 {[%clk 0:01:57]} 25. Nd6 {[%clk 0:01:19]}  Re7 {[%clk 0:01:55]} 26. Kf2 {[%clk 0:01:08]}  Rd7 {[%clk 0:01:49]} 27. e5 {[%clk 0:00:58]}  Nd5 {[%clk 0:01:49]} 28. Rb1 {[%clk 0:00:55]}  f6 {[%clk 0:01:46]} 29. f4 {[%clk 0:00:52]}  g5 {[%clk 0:01:41]} 30. Kf3 {[%clk 0:00:45]}  g4+ {[%clk 0:01:34]} 31. Kf2 {[%clk 0:00:41]}  Kg7 {[%clk 0:01:33]} 32. Ne8+ {[%clk 0:00:36]}  Kf7 {[%clk 0:01:31]} 33. Nxf6 {[%clk 0:00:35]}  Nxf6 {[%clk 0:01:32]} 34. exf6 {[%clk 0:00:35]}  Kxf6 {[%clk 0:01:32]} 35. Ke2 {[%clk 0:00:27]}  Kf5 {[%clk 0:01:26]} 36. Rb4 {[%clk 0:00:24]}  Rd5 {[%clk 0:01:24]} 37. Bd8 {[%clk 0:00:22]}  Rxd8 {[%clk 0:01:23]} 38. Rb6 {[%clk 0:00:19]}  Rd5 {[%clk 0:01:18]} 39. Rxb8 {[%clk 0:00:18]}  Rxc5 {[%clk 0:01:18]} 40. Rf8+ {[%clk 0:00:16]}  Ke4 {[%clk 0:01:18]} 41. Re8 {[%clk 0:00:15]}  Rc2+ {[%clk 0:01:18]} 42. Kd1 {[%clk 0:00:15]}  Rxh2 {[%clk 0:01:16]} 43. Rxe6+ {[%clk 0:00:15]}  Kf3 {[%clk 0:01:16]} 44. Rxc6 {[%clk 0:00:15]}  Kxg3 {[%clk 0:01:17]} 45. Rxa6 {[%clk 0:00:15]}  Kxf4 {[%clk 0:01:15]} 46. Rh6 {[%clk 0:00:15]}  h4 {[%clk 0:01:15]} 47. a6 {[%clk 0:00:14]}  h3 {[%clk 0:01:16]} 48. a7 {[%clk 0:00:13]}  Ra2 {[%clk 0:01:16]} 49. Rh7 {[%clk 0:00:10]}  Kg3 {[%clk 0:01:16]} 50. Kc1 {[%clk 0:00:10]}  h2 {[%clk 0:01:17]} 51. Kb1 {[%clk 0:00:11]}  Rxa7 {[%clk 0:01:17]} 52. Rxa7 {[%clk 0:00:09]}  h1=Q+ {[%clk 0:01:17]} 53. Kb2 {[%clk 0:00:07]}  Qg2+ {[%clk 0:01:17]} 54. Kb3 {[%clk 0:00:06]}  Qf3+ {[%clk 0:01:17]} 55. Kc4 {[%clk 0:00:06]}  Qf4+ {[%clk 0:01:15]} 56. Kb5 {[%clk 0:00:06]}  Qe5+ {[%clk 0:01:15]} 57. Kc6 {[%clk 0:00:05]}  Qe6+ {[%clk 0:01:15]} 58. Kb5 {[%clk 0:00:04]}  Qd5+ {[%clk 0:01:15]} 59. Ka6 {[%clk 0:00:03]}  Qa2+ {[%clk 0:01:15]} 60. Kb7 {[%clk 0:00:03]}  Qxa7+ {[%clk 0:01:16]} 61. Kxa7 {[%clk 0:00:03]}  Kf2 {[%clk 0:01:17]} 62. Kb6 {[%clk 0:00:04]}  g3 {[%clk 0:01:18]} 63. Kc5 {[%clk 0:00:05]}  g2 {[%clk 0:01:19]} 64. Kd5 {[%clk 0:00:06]}  g1=Q {[%clk 0:01:19]} 65. Kc5 {[%clk 0:00:06]}  Qg4 {[%clk 0:01:19]} 66. Kd5 {[%clk 0:00:07]}  Ke3 {[%clk 0:01:19]} 67. Kc5 {[%clk 0:00:08]}  Qe4 {[%clk 0:01:20]} 68. Kd6 {[%clk 0:00:07]}  Qf5 {[%clk 0:01:20]} 69. Kc6 {[%clk 0:00:07]}  Kd4 {[%clk 0:01:20]} 70. Kd6 {[%clk 0:00:07]}  Qf6+ {[%clk 0:01:21]} 71. Kd7 {[%clk 0:00:07]}  Kd5 {[%clk 0:01:21]} 72. Kc7 {[%clk 0:00:07]}  Qe7+ {[%clk 0:01:21]} 73. Kc8 {[%clk 0:00:07]}  Kc6 {[%clk 0:01:21]} 74. Kb8 {[%clk 0:00:07]}  Qb7# {[%clk 0:01:22]} 0-1


[Site "https://www.chess.com"]

[Event "Titled Tuesday Blitz August 09 Early 2022"]
[White "Vakhlamov, Igor L."]
[Black "Ianov, Viktor"]
[WhiteFideId "24126748"]
[BlackFideId "14102730"]
[WhiteElo "2401"]
[BlackElo "2152"]
[Result "1-0"]
[Round "11"]
[TimeControl "180+1"]
[Date "2022.08.09"]
[WhiteClock "0:00:18"]
[BlackClock "0:00:02"]

1. e4 {[%clk 0:03:00]}  d6 {[%clk 0:02:59]} 2. d4 {[%clk 0:03:00]}  Nf6 {[%clk 0:02:59]} 3. Nc3 {[%clk 0:03:00]}  c6 {[%clk 0:02:59]} 4. Nf3 {[%clk 0:02:58]}  Bg4 {[%clk 0:02:58]} 5. h3 {[%clk 0:02:56]}  Bh5 {[%clk 0:02:57]} 6. g4 {[%clk 0:02:56]}  Bg6 {[%clk 0:02:57]} 7. Qe2 {[%clk 0:02:57]}  e6 {[%clk 0:02:57]} 8. Rg1 {[%clk 0:02:51]}  Be7 {[%clk 0:02:56]} 9. h4 {[%clk 0:02:48]}  h5 {[%clk 0:02:41]} 10. g5 {[%clk 0:02:45]}  Nfd7 {[%clk 0:02:39]} 11. Bf4 {[%clk 0:02:44]}  Na6 {[%clk 0:02:33]} 12. Bh3 {[%clk 0:02:41]}  Qa5 {[%clk 0:02:30]} 13. a3 {[%clk 0:02:40]}  O-O {[%clk 0:02:13]} 14. d5 {[%clk 0:02:28]}  Ndc5 {[%clk 0:01:54]} 15. Bd2 {[%clk 0:02:19]}  exd5 {[%clk 0:01:44]} 16. Nxd5 {[%clk 0:02:20]}  Qd8 {[%clk 0:01:43]} 17. Nc3 {[%clk 0:01:59]}  Re8 {[%clk 0:01:39]} 18. O-O-O {[%clk 0:01:58]}  Bf8 {[%clk 0:01:37]} 19. e5 {[%clk 0:01:48]}  dxe5 {[%clk 0:01:25]} 20. Nxe5 {[%clk 0:01:47]}  Qb6 {[%clk 0:01:01]} 21. f4 {[%clk 0:01:39]}  Bd6 {[%clk 0:00:40]} 22. Rge1 {[%clk 0:01:23]}  Bxe5 {[%clk 0:00:38]} 23. fxe5 {[%clk 0:01:23]}  Rad8 {[%clk 0:00:33]} 24. Qc4 {[%clk 0:01:18]}  Qc7 {[%clk 0:00:16]} 25. Bf4 {[%clk 0:01:14]}  Rxd1+ {[%clk 0:00:13]} 26. Rxd1 {[%clk 0:01:14]}  b5 {[%clk 0:00:13]} 27. Qd4 {[%clk 0:01:08]}  Ne6 {[%clk 0:00:12]} 28. Bxe6 {[%clk 0:01:04]}  fxe6 {[%clk 0:00:12]} 29. Ne4 {[%clk 0:01:03]}  c5 {[%clk 0:00:08]} 30. Qe3 {[%clk 0:01:03]}  Rf8 {[%clk 0:00:05]} 31. Nd6 {[%clk 0:01:02]}  Qc6 {[%clk 0:00:05]} 32. b3 {[%clk 0:00:51]}  c4 {[%clk 0:00:05]} 33. b4 {[%clk 0:00:51]}  Nc7 {[%clk 0:00:04]} 34. Bh2 {[%clk 0:00:48]}  Nd5 {[%clk 0:00:04]} 35. Qc5 {[%clk 0:00:47]}  Qa6 {[%clk 0:00:04]} 36. Nxb5 {[%clk 0:00:46]}  c3 {[%clk 0:00:03]} 37. Bg1 {[%clk 0:00:42]}  Qa4 {[%clk 0:00:03]} 38. Rd2 {[%clk 0:00:17]}  cxd2+ {[%clk 0:00:02]} 39. Kxd2 {[%clk 0:00:18]} 1-0


[Site "https://www.chess.com"]

[Event "Titled Tuesday Blitz August 09 Early 2022"]
[White "Wieczorek, Oskar"]
[Black "Bryakin, Mikhail"]
[WhiteFideId "1133950"]
[BlackFideId "4165314"]
[WhiteElo "2302"]
[BlackElo "2353"]
[Result "0-1"]
[Round "11"]
[TimeControl "180+1"]
[Date "2022.08.09"]
[WhiteClock "0:00:46"]
[BlackClock "0:00:14"]

1. e4 {[%clk 0:03:00]}  d5 {[%clk 0:02:53]} 2. Nc3 {[%clk 0:02:55]}  d4 {[%clk 0:02:43]} 3. Nb1 {[%clk 0:02:55]}  c5 {[%clk 0:02:43]} 4. g3 {[%clk 0:02:54]}  Nc6 {[%clk 0:02:43]} 5. Bg2 {[%clk 0:02:54]}  Qc7 {[%clk 0:02:44]} 6. d3 {[%clk 0:02:54]}  e5 {[%clk 0:02:45]} 7. Ne2 {[%clk 0:02:51]}  Bd6 {[%clk 0:02:44]} 8. O-O {[%clk 0:02:51]}  Nf6 {[%clk 0:02:38]} 9. a4 {[%clk 0:02:50]}  a6 {[%clk 0:02:32]} 10. Na3 {[%clk 0:02:46]}  Be6 {[%clk 0:02:32]} 11. Nc4 {[%clk 0:02:45]}  Bxc4 {[%clk 0:02:33]} 12. dxc4 {[%clk 0:02:46]}  h6 {[%clk 0:02:31]} 13. Bd2 {[%clk 0:02:45]}  g5 {[%clk 0:02:30]} 14. Nc1 {[%clk 0:02:45]}  O-O-O {[%clk 0:02:29]} 15. Nd3 {[%clk 0:02:45]}  Rdg8 {[%clk 0:02:29]} 16. Qf3 {[%clk 0:02:22]}  Qe7 {[%clk 0:02:29]} 17. Qf5+ {[%clk 0:02:08]}  Kb8 {[%clk 0:02:28]} 18. a5 {[%clk 0:02:08]}  Rg6 {[%clk 0:02:28]} 19. Qf3 {[%clk 0:01:59]}  h5 {[%clk 0:02:21]} 20. Qe2 {[%clk 0:01:51]}  h4 {[%clk 0:02:20]} 21. g4 {[%clk 0:01:41]}  h3 {[%clk 0:02:18]} 22. Bf3 {[%clk 0:01:41]}  Rh4 {[%clk 0:02:16]} 23. Kh1 {[%clk 0:01:41]}  Qe6 {[%clk 0:02:13]} 24. Rg1 {[%clk 0:01:41]}  Qxc4 {[%clk 0:02:13]} 25. Rg3 {[%clk 0:01:40]}  Qxc2 {[%clk 0:02:09]} 26. Rc1 {[%clk 0:01:40]}  Qb3 {[%clk 0:02:06]} 27. Nxc5 {[%clk 0:01:37]}  Bxc5 {[%clk 0:01:51]} 28. Rxc5 {[%clk 0:01:38]}  Qxb2 {[%clk 0:01:45]} 29. Rxc6 {[%clk 0:01:27]}  bxc6 {[%clk 0:01:43]} 30. Qc4 {[%clk 0:01:27]}  Qb5 {[%clk 0:01:42]} 31. Qc1 {[%clk 0:01:23]}  c5 {[%clk 0:01:26]} 32. Bd1 {[%clk 0:01:18]}  c4 {[%clk 0:01:25]} 33. Qa3 {[%clk 0:01:16]}  Nd7 {[%clk 0:01:10]} 34. Ba4 {[%clk 0:01:15]}  Qb1+ {[%clk 0:01:09]} 35. Rg1 {[%clk 0:01:15]}  Qxe4+ {[%clk 0:01:05]} 36. f3 {[%clk 0:01:15]}  Qd5 {[%clk 0:00:59]} 37. Bxd7 {[%clk 0:01:08]}  Qxd7 {[%clk 0:00:54]} 38. Rb1+ {[%clk 0:01:07]}  Kc7 {[%clk 0:00:41]} 39. Qc5+ {[%clk 0:01:04]}  Rc6 {[%clk 0:00:40]} 40. Qxe5+ {[%clk 0:00:59]}  Rd6 {[%clk 0:00:22]} 41. Bxg5 {[%clk 0:00:54]}  Rxg4 {[%clk 0:00:16]} 42. Qc5+ {[%clk 0:00:50]}  Rc6 {[%clk 0:00:14]} 43. Qa7+ {[%clk 0:00:50]}  Kd6 {[%clk 0:00:15]} 44. fxg4 {[%clk 0:00:46]}  Qxa7 {[%clk 0:00:14]} 0-1


[Site "https://www.chess.com"]

[Event "Titled Tuesday Blitz August 09 Early 2022"]
[White "Xu, Yi"]
[Black "Blanco Ronquillo, Humberto L."]
[WhiteFideId "8605564"]
[BlackFideId "3504239"]
[WhiteElo "2471"]
[BlackElo "2425"]
[Result "1-0"]
[Round "11"]
[TimeControl "180+1"]
[Date "2022.08.09"]
[WhiteClock "0:00:24"]
[BlackClock "0:00:01"]

1. e4 {[%clk 0:02:58]}  c5 {[%clk 0:02:59]} 2. Nf3 {[%clk 0:02:58]}  g6 {[%clk 0:03:00]} 3. c3 {[%clk 0:02:56]}  d5 {[%clk 0:02:59]} 4. e5 {[%clk 0:02:56]}  Nc6 {[%clk 0:02:57]} 5. d4 {[%clk 0:02:57]}  Bg4 {[%clk 0:02:56]} 6. Bb5 {[%clk 0:02:56]}  Qb6 {[%clk 0:02:55]} 7. Bxc6+ {[%clk 0:02:55]}  Qxc6 {[%clk 0:02:56]} 8. Nbd2 {[%clk 0:02:54]}  e6 {[%clk 0:02:43]} 9. h3 {[%clk 0:02:54]}  Bf5 {[%clk 0:02:40]} 10. O-O {[%clk 0:02:41]}  Bd3 {[%clk 0:02:36]} 11. Re1 {[%clk 0:02:41]}  Ba6 {[%clk 0:02:37]} 12. Nf1 {[%clk 0:02:38]}  Bg7 {[%clk 0:02:26]} 13. Be3 {[%clk 0:02:33]}  cxd4 {[%clk 0:02:23]} 14. cxd4 {[%clk 0:02:29]}  Ne7 {[%clk 0:02:19]} 15. Ng3 {[%clk 0:02:27]}  O-O {[%clk 0:02:17]} 16. Qd2 {[%clk 0:02:26]}  Rfc8 {[%clk 0:02:16]} 17. Rec1 {[%clk 0:02:24]}  Qb6 {[%clk 0:02:15]} 18. b3 {[%clk 0:02:17]}  Rc6 {[%clk 0:01:36]} 19. Bg5 {[%clk 0:02:06]}  Nf5 {[%clk 0:01:26]} 20. Nxf5 {[%clk 0:02:04]}  exf5 {[%clk 0:01:27]} 21. Be7 {[%clk 0:01:56]}  Rac8 {[%clk 0:01:24]} 22. Rxc6 {[%clk 0:01:46]}  Qxc6 {[%clk 0:01:23]} 23. Ba3 {[%clk 0:01:46]}  Qb5 {[%clk 0:01:13]} 24. Rc1 {[%clk 0:01:45]}  Rc6 {[%clk 0:01:12]} 25. Rxc6 {[%clk 0:01:44]}  Qxc6 {[%clk 0:01:13]} 26. Kh2 {[%clk 0:01:25]}  b6 {[%clk 0:01:13]} 27. Qb4 {[%clk 0:01:21]}  Be2 {[%clk 0:01:02]} 28. Qe7 {[%clk 0:01:02]}  h6 {[%clk 0:00:54]} 29. Qxa7 {[%clk 0:00:46]}  Bxf3 {[%clk 0:00:53]} 30. gxf3 {[%clk 0:00:45]}  Qc2 {[%clk 0:00:43]} 31. Kg2 {[%clk 0:00:43]}  Qxa2 {[%clk 0:00:44]} 32. Qe7 {[%clk 0:00:40]}  Qxb3 {[%clk 0:00:40]} 33. Qe8+ {[%clk 0:00:35]}  Kh7 {[%clk 0:00:39]} 34. Bf8 {[%clk 0:00:36]}  Bxf8 {[%clk 0:00:10]} 35. Qxf8 {[%clk 0:00:36]}  Qc3 {[%clk 0:00:04]} 36. Qxf7+ {[%clk 0:00:35]}  Kh8 {[%clk 0:00:04]} 37. e6 {[%clk 0:00:33]}  Qd2 {[%clk 0:00:01]} 38. Qf6+ {[%clk 0:00:24]} 1-0


[Site "https://www.chess.com"]